[Event "Titled Tuesday Blitz April 4 Late 2023"]
[White "Pichot, Alan"]
[Black "Kramnik, Vladimir"]
[WhiteFideId "110973"]
[BlackFideId "4101588"]
[WhiteElo "2573"]
[BlackElo "2712"]
[Result "0-1"]
[Round "06"]
[TimeControl "180+2"]
[Date "2023.04.04"]
[WhiteClock "0:00:26"]
[BlackClock "0:00:21"]

1. e4 {[%clk 0:03:00]}  c5 {[%clk 0:02:59]} 2. Nf3 {[%clk 0:03:01]}  d6 {[%clk 0:03:00]} 3. Bb5+ {[%clk 0:03:00]}  Bd7 {[%clk 0:02:59]} 4. Bxd7+ {[%clk 0:02:59]}  Qxd7 {[%clk 0:02:59]} 5. O-O {[%clk 0:02:59]}  Nf6 {[%clk 0:02:58]} 6. Re1 {[%clk 0:02:59]}  Nc6 {[%clk 0:02:58]} 7. c3 {[%clk 0:02:59]}  e6 {[%clk 0:02:58]} 8. d4 {[%clk 0:02:59]}  cxd4 {[%clk 0:02:58]} 9. cxd4 {[%clk 0:02:59]}  d5 {[%clk 0:02:58]} 10. e5 {[%clk 0:03:00]}  Ne4 {[%clk 0:02:59]} 11. Nbd2 {[%clk 0:03:00]}  Nxd2 {[%clk 0:02:52]} 12. Bxd2 {[%clk 0:03:01]}  Be7 {[%clk 0:02:51]} 13. g3 {[%clk 0:03:02]}  O-O {[%clk 0:02:49]} 14. h4 {[%clk 0:03:01]}  Rac8 {[%clk 0:02:43]} 15. Rc1 {[%clk 0:03:01]}  a6 {[%clk 0:02:36]} 16. Qb3 {[%clk 0:03:00]}  Na7 {[%clk 0:02:32]} 17. Bg5 {[%clk 0:02:29]}  Rxc1 {[%clk 0:02:27]} 18. Rxc1 {[%clk 0:02:29]}  Rc8 {[%clk 0:02:27]} 19. Rxc8+ {[%clk 0:02:27]}  Nxc8 {[%clk 0:02:26]} 20. Qc2 {[%clk 0:02:28]}  Bf8 {[%clk 0:02:24]} 21. h5 {[%clk 0:02:25]}  h6 {[%clk 0:02:23]} 22. Be3 {[%clk 0:02:24]}  Ne7 {[%clk 0:02:22]} 23. g4 {[%clk 0:02:25]}  Qb5 {[%clk 0:02:11]} 24. b3 {[%clk 0:02:21]}  Nc6 {[%clk 0:01:45]} 25. g5 {[%clk 0:02:18]}  Nb4 {[%clk 0:01:45]} 26. Qd2 {[%clk 0:02:19]}  hxg5 {[%clk 0:01:41]} 27. Bxg5 {[%clk 0:02:14]}  Qd3 {[%clk 0:01:36]} 28. Qf4 {[%clk 0:02:13]}  Nxa2 {[%clk 0:01:19]} 29. h6 {[%clk 0:01:42]}  Nc3 {[%clk 0:01:19]} 30. Kg2 {[%clk 0:01:34]}  gxh6 {[%clk 0:01:16]} 31. Bxh6 {[%clk 0:01:31]}  Qg6+ {[%clk 0:01:10]} 32. Bg5 {[%clk 0:01:31]}  Ne4 {[%clk 0:01:10]} 33. Kf1 {[%clk 0:01:25]}  Nxg5 {[%clk 0:01:08]} 34. Qxg5 {[%clk 0:01:25]}  Qxg5 {[%clk 0:01:07]} 35. Nxg5 {[%clk 0:01:26]}  Bh6 {[%clk 0:01:05]} 36. Nf3 {[%clk 0:01:24]}  Kh7 {[%clk 0:01:05]} 37. Ke2 {[%clk 0:01:22]}  Kg6 {[%clk 0:01:05]} 38. Kd3 {[%clk 0:01:23]}  Kf5 {[%clk 0:01:05]} 39. Ng1 {[%clk 0:01:19]}  Kg4 {[%clk 0:01:03]} 40. Ne2 {[%clk 0:01:17]}  Kf3 {[%clk 0:01:00]} 41. Nc3 {[%clk 0:01:17]}  b5 {[%clk 0:00:56]} 42. Na2 {[%clk 0:01:18]}  Bf8 {[%clk 0:00:54]} 43. Nc3 {[%clk 0:01:17]}  Kxf2 {[%clk 0:00:53]} 44. Ne2 {[%clk 0:01:18]}  Kf3 {[%clk 0:00:52]} 45. Nc3 {[%clk 0:01:16]}  Be7 {[%clk 0:00:51]} 46. Nd1 {[%clk 0:01:16]}  b4 {[%clk 0:00:43]} 47. Nb2 {[%clk 0:01:15]}  f6 {[%clk 0:00:36]} 48. exf6 {[%clk 0:01:15]}  Bxf6 {[%clk 0:00:36]} 49. Na4 {[%clk 0:01:16]}  Be7 {[%clk 0:00:35]} 50. Nb6 {[%clk 0:01:02]}  Kf4 {[%clk 0:00:34]} 51. Nd7 {[%clk 0:01:01]}  Kf5 {[%clk 0:00:30]} 52. Nb8 {[%clk 0:01:01]}  Bd6 {[%clk 0:00:29]} 53. Nc6 {[%clk 0:01:00]}  Kf6 {[%clk 0:00:28]} 54. Ke3 {[%clk 0:01:01]}  Kg5 {[%clk 0:00:25]} 55. Kd3 {[%clk 0:00:52]}  Kf6 {[%clk 0:00:24]} 56. Ke3 {[%clk 0:00:52]}  Kf7 {[%clk 0:00:24]} 57. Kf3 {[%clk 0:00:27]}  Ke8 {[%clk 0:00:24]} 58. Kg4 {[%clk 0:00:28]}  Kd7 {[%clk 0:00:24]} 59. Na5 {[%clk 0:00:23]}  Kc7 {[%clk 0:00:22]} 60. Kg5 {[%clk 0:00:23]}  Kb6 {[%clk 0:00:21]} 61. Kf6 {[%clk 0:00:24]}  Kxa5 {[%clk 0:00:21]} 62. Kxe6 {[%clk 0:00:24]}  Bg3 {[%clk 0:00:21]} 63. Kxd5 {[%clk 0:00:25]}  Kb5 {[%clk 0:00:21]} 64. Ke6 {[%clk 0:00:25]}  a5 {[%clk 0:00:21]} 65. d5 {[%clk 0:00:26]}  a4 {[%clk 0:00:21]} 0-1


[Site "https://www.chess.com"]

[Event "Titled Tuesday Blitz April 4 Late 2023"]
[White "Castellanos Rodriguez, Renier"]
[Black "Alekseenko, Kirill"]
[WhiteFideId "3404650"]
[BlackFideId "4135539"]
[WhiteElo "2597"]
[BlackElo "2683"]
[Result "0-1"]
[Round "06"]
[TimeControl "180+2"]
[Date "2023.04.04"]
[WhiteClock "0:00:17"]
[BlackClock "0:00:35"]

1. c3 {[%clk 0:02:58]}  b6 {[%clk 0:02:49]} 2. Nf3 {[%clk 0:02:53]}  Bb7 {[%clk 0:02:49]} 3. d4 {[%clk 0:02:54]}  Nf6 {[%clk 0:02:49]} 4. Bf4 {[%clk 0:02:52]}  g6 {[%clk 0:02:45]} 5. e3 {[%clk 0:02:52]}  Nh5 {[%clk 0:02:45]} 6. Bg5 {[%clk 0:02:51]}  h6 {[%clk 0:02:42]} 7. Bh4 {[%clk 0:02:51]}  g5 {[%clk 0:02:41]} 8. Nfd2 {[%clk 0:02:47]}  Ng7 {[%clk 0:02:35]} 9. Bg3 {[%clk 0:02:47]}  d6 {[%clk 0:02:30]} 10. e4 {[%clk 0:02:45]}  Nd7 {[%clk 0:02:24]} 11. h4 {[%clk 0:02:41]}  gxh4 {[%clk 0:02:14]} 12. Bxh4 {[%clk 0:02:40]}  c5 {[%clk 0:02:02]} 13. d5 {[%clk 0:02:37]}  a6 {[%clk 0:02:01]} 14. Nf3 {[%clk 0:02:29]}  Qc7 {[%clk 0:02:00]} 15. a4 {[%clk 0:02:25]}  e5 {[%clk 0:01:58]} 16. Na3 {[%clk 0:02:23]}  Be7 {[%clk 0:01:56]} 17. Nc4 {[%clk 0:02:18]}  Bxh4 {[%clk 0:01:41]} 18. Nxh4 {[%clk 0:02:19]}  O-O-O {[%clk 0:01:37]} 19. g3 {[%clk 0:02:13]}  Kb8 {[%clk 0:01:36]} 20. Bh3 {[%clk 0:02:11]}  Bc8 {[%clk 0:01:36]} 21. Qb3 {[%clk 0:02:11]}  Ka7 {[%clk 0:01:33]} 22. Kd2 {[%clk 0:01:33]}  Nf6 {[%clk 0:01:30]} 23. f3 {[%clk 0:01:27]}  Nfh5 {[%clk 0:01:27]} 24. Bxc8 {[%clk 0:01:25]}  Rxc8 {[%clk 0:01:28]} 25. Rh3 {[%clk 0:01:06]}  Rb8 {[%clk 0:01:16]} 26. Rah1 {[%clk 0:01:05]}  Qe7 {[%clk 0:00:57]} 27. Ne3 {[%clk 0:01:00]}  Qg5 {[%clk 0:00:54]} 28. Rg1 {[%clk 0:00:32]}  f5 {[%clk 0:00:52]} 29. Nxf5 {[%clk 0:00:31]}  Nxf5 {[%clk 0:00:52]} 30. exf5 {[%clk 0:00:31]}  Nf6 {[%clk 0:00:53]} 31. Rh4 {[%clk 0:00:23]}  h5 {[%clk 0:00:51]} 32. Ke2 {[%clk 0:00:21]}  Rhg8 {[%clk 0:00:51]} 33. Qc2 {[%clk 0:00:17]}  Qxh4 {[%clk 0:00:42]} 34. gxh4 {[%clk 0:00:18]}  Rxg1 {[%clk 0:00:42]} 35. Kf2 {[%clk 0:00:18]}  Rbg8 {[%clk 0:00:40]} 36. Qb3 {[%clk 0:00:18]}  Rh1 {[%clk 0:00:37]} 37. Ng2 {[%clk 0:00:17]}  Rh2 {[%clk 0:00:35]} 0-1


[Site "https://www.chess.com"]

[Event "Titled Tuesday Blitz April 4 Late 2023"]
[White "Zakhartsov, Vladimir"]
[Black "Gokerkan, Cem Kaan"]
[WhiteFideId "4145097"]
[BlackFideId "6336760"]
[WhiteElo "2497"]
[BlackElo "2365"]
[Result "1-0"]
[Round "06"]
[TimeControl "180+2"]
[Date "2023.04.04"]
[WhiteClock "0:00:13"]
[BlackClock "0:00:01"]

1. e4 {[%clk 0:03:00]}  e5 {[%clk 0:02:59]} 2. Nf3 {[%clk 0:03:00]}  Nf6 {[%clk 0:02:59]} 3. Nc3 {[%clk 0:03:01]}  d5 {[%clk 0:02:54]} 4. exd5 {[%clk 0:02:59]}  e4 {[%clk 0:02:55]} 5. Ng5 {[%clk 0:02:39]}  Bb4 {[%clk 0:02:11]} 6. Ngxe4 {[%clk 0:02:28]}  Nxe4 {[%clk 0:02:11]} 7. Nxe4 {[%clk 0:02:28]}  O-O {[%clk 0:02:11]} 8. Bd3 {[%clk 0:02:20]}  f5 {[%clk 0:02:01]} 9. Nc3 {[%clk 0:02:19]}  Re8+ {[%clk 0:02:01]} 10. Ne2 {[%clk 0:02:10]}  Qxd5 {[%clk 0:01:31]} 11. O-O {[%clk 0:02:09]}  Nc6 {[%clk 0:01:30]} 12. Nf4 {[%clk 0:02:00]}  Qd4 {[%clk 0:01:26]} 13. Qf3 {[%clk 0:01:42]}  Ne5 {[%clk 0:01:10]} 14. Qe3 {[%clk 0:01:43]}  Qd8 {[%clk 0:01:06]} 15. Be2 {[%clk 0:01:33]}  Kh8 {[%clk 0:00:58]} 16. c3 {[%clk 0:01:25]}  Bd6 {[%clk 0:00:56]} 17. d4 {[%clk 0:01:20]}  Ng4 {[%clk 0:00:55]} 18. Qd3 {[%clk 0:01:16]}  Qh4 {[%clk 0:00:35]} 19. h3 {[%clk 0:01:07]}  Nf6 {[%clk 0:00:35]} 20. g3 {[%clk 0:00:58]}  Qh6 {[%clk 0:00:36]} 21. h4 {[%clk 0:00:58]}  Ne4 {[%clk 0:00:29]} 22. Bh5 {[%clk 0:00:51]}  Bxf4 {[%clk 0:00:12]} 23. Bxe8 {[%clk 0:00:50]}  Bxc1 {[%clk 0:00:12]} 24. Raxc1 {[%clk 0:00:50]}  Be6 {[%clk 0:00:13]} 25. Ba4 {[%clk 0:00:46]}  g5 {[%clk 0:00:12]} 26. Qe3 {[%clk 0:00:42]}  Qh5 {[%clk 0:00:07]} 27. Bd1 {[%clk 0:00:40]}  Qg6 {[%clk 0:00:07]} 28. hxg5 {[%clk 0:00:39]}  Nxg5 {[%clk 0:00:06]} 29. f4 {[%clk 0:00:34]}  Ne4 {[%clk 0:00:05]} 30. g4 {[%clk 0:00:27]}  Rg8 {[%clk 0:00:04]} 31. Bf3 {[%clk 0:00:23]}  h6 {[%clk 0:00:02]} 32. Rc2 {[%clk 0:00:22]}  Nf6 {[%clk 0:00:02]} 33. Qxe6 {[%clk 0:00:17]}  fxg4 {[%clk 0:00:01]} 34. Rg2 {[%clk 0:00:17]}  h5 {[%clk 0:00:01]} 35. Bd5 {[%clk 0:00:14]}  Re8 {[%clk 0:00:01]} 36. Qf7 {[%clk 0:00:13]} 1-0


[Site "https://www.chess.com"]

[Event "Titled Tuesday Blitz April 4 Late 2023"]
[White "Goltsev, Dmitry"]
[Black "Makarian, Rudik"]
[WhiteFideId "24176710"]
[BlackFideId "44105681"]
[WhiteElo "2336"]
[BlackElo "2430"]
[Result "0-1"]
[Round "06"]
[TimeControl "180+2"]
[Date "2023.04.04"]
[WhiteClock "0:00:03"]
[BlackClock "0:00:12"]

1. e4 {[%clk 0:03:00]}  c5 {[%clk 0:03:00]} 2. Nf3 {[%clk 0:02:59]}  Nc6 {[%clk 0:03:01]} 3. d4 {[%clk 0:02:59]}  cxd4 {[%clk 0:03:02]} 4. Nxd4 {[%clk 0:02:59]}  e6 {[%clk 0:03:02]} 5. Nc3 {[%clk 0:02:59]}  a6 {[%clk 0:03:02]} 6. Be2 {[%clk 0:03:00]}  Qc7 {[%clk 0:03:00]} 7. O-O {[%clk 0:02:59]}  Nf6 {[%clk 0:03:01]} 8. Be3 {[%clk 0:03:00]}  d6 {[%clk 0:03:00]} 9. f4 {[%clk 0:02:58]}  Be7 {[%clk 0:03:00]} 10. Bf3 {[%clk 0:02:58]}  O-O {[%clk 0:02:59]} 11. Nb3 {[%clk 0:02:54]}  b5 {[%clk 0:02:56]} 12. a3 {[%clk 0:02:54]}  Bb7 {[%clk 0:02:57]} 13. Qe2 {[%clk 0:02:53]}  Rac8 {[%clk 0:02:56]} 14. Qf2 {[%clk 0:02:52]}  Nd7 {[%clk 0:02:50]} 15. Rad1 {[%clk 0:02:51]}  Na5 {[%clk 0:02:48]} 16. Nxa5 {[%clk 0:02:36]}  Qxa5 {[%clk 0:02:49]} 17. Rd3 {[%clk 0:02:08]}  Qc7 {[%clk 0:02:46]} 18. Rfd1 {[%clk 0:02:06]}  Nc5 {[%clk 0:02:41]} 19. R3d2 {[%clk 0:02:06]}  Rfd8 {[%clk 0:02:39]} 20. f5 {[%clk 0:01:50]}  Bf6 {[%clk 0:02:34]} 21. fxe6 {[%clk 0:01:45]}  Nxe6 {[%clk 0:02:31]} 22. Bb6 {[%clk 0:01:45]}  Qe7 {[%clk 0:02:27]} 23. Bxd8 {[%clk 0:01:44]}  Rxd8 {[%clk 0:02:28]} 24. Nd5 {[%clk 0:01:44]}  Bxd5 {[%clk 0:02:27]} 25. exd5 {[%clk 0:01:42]}  Nc5 {[%clk 0:02:26]} 26. c3 {[%clk 0:01:37]}  Be5 {[%clk 0:02:22]} 27. Re2 {[%clk 0:01:31]}  g6 {[%clk 0:02:17]} 28. g3 {[%clk 0:01:06]}  Kg7 {[%clk 0:02:12]} 29. Kg2 {[%clk 0:01:03]}  Na4 {[%clk 0:02:05]} 30. Rde1 {[%clk 0:01:01]}  h5 {[%clk 0:01:59]} 31. Qd4 {[%clk 0:00:57]}  Qf6 {[%clk 0:01:46]} 32. Qa7 {[%clk 0:00:57]}  h4 {[%clk 0:01:43]} 33. Rf1 {[%clk 0:00:56]}  Kf8 {[%clk 0:00:32]} 34. Bg4 {[%clk 0:00:40]}  Qe7 {[%clk 0:00:32]} 35. Qxa6 {[%clk 0:00:35]}  hxg3 {[%clk 0:00:27]} 36. Qxb5 {[%clk 0:00:20]}  Nc5 {[%clk 0:00:15]} 37. hxg3 {[%clk 0:00:11]}  Qg5 {[%clk 0:00:14]} 38. Qc4 {[%clk 0:00:10]}  f5 {[%clk 0:00:14]} 39. Ref2 {[%clk 0:00:09]}  Kg7 {[%clk 0:00:12]} 40. b4 {[%clk 0:00:07]}  Ne4 {[%clk 0:00:11]} 41. Rf3 {[%clk 0:00:07]}  Qxg4 {[%clk 0:00:11]} 42. Qc7+ {[%clk 0:00:07]}  Kf6 {[%clk 0:00:08]} 43. Qxd8+ {[%clk 0:00:07]}  Kf7 {[%clk 0:00:08]} 44. Qd7+ {[%clk 0:00:07]}  Kf6 {[%clk 0:00:08]} 45. Qe6+ {[%clk 0:00:06]}  Kg7 {[%clk 0:00:08]} 46. Qe7+ {[%clk 0:00:06]}  Kg8 {[%clk 0:00:09]} 47. Qe8+ {[%clk 0:00:06]}  Kg7 {[%clk 0:00:09]} 48. Qe7+ {[%clk 0:00:07]}  Kg8 {[%clk 0:00:10]} 49. Rh1 {[%clk 0:00:07]}  Ng5 {[%clk 0:00:09]} 50. Qe8+ {[%clk 0:00:07]}  Kg7 {[%clk 0:00:10]} 51. Qe7+ {[%clk 0:00:07]}  Kg8 {[%clk 0:00:10]} 52. Re3 {[%clk 0:00:04]}  f4 {[%clk 0:00:09]} 53. Qe8+ {[%clk 0:00:04]}  Kg7 {[%clk 0:00:09]} 54. Qe7+ {[%clk 0:00:04]}  Kg8 {[%clk 0:00:09]} 55. Qe8+ {[%clk 0:00:03]}  Kg7 {[%clk 0:00:10]} 56. Rh4 {[%clk 0:00:02]}  f3+ {[%clk 0:00:09]} 57. Kf2 {[%clk 0:00:02]}  Qxg3+ {[%clk 0:00:09]} 58. Kf1 {[%clk 0:00:02]}  Qg2+ {[%clk 0:00:10]} 59. Ke1 {[%clk 0:00:02]}  f2+ {[%clk 0:00:10]} 60. Kd1 {[%clk 0:00:03]}  f1=Q+ {[%clk 0:00:11]} 61. Re1 {[%clk 0:00:02]}  Qge2+ {[%clk 0:00:11]} 62. Kc1 {[%clk 0:00:03]}  Qfxe1# {[%clk 0:00:12]} 0-1


[Site "https://www.chess.com"]

[Event "Titled Tuesday Blitz April 4 Late 2023"]
[White "Bachmann, Axel"]
[Black "Gadimbayli, Abdulla"]
[WhiteFideId "3700488"]
[BlackFideId "13404938"]
[WhiteElo "2605"]
[BlackElo "2390"]
[Result "1-0"]
[Round "06"]
[TimeControl "180+2"]
[Date "2023.04.04"]
[WhiteClock "0:00:31"]
[BlackClock "0:00:16"]

1. Nf3 {[%clk 0:02:59]}  d5 {[%clk 0:02:57]} 2. e3 {[%clk 0:02:52]}  Nf6 {[%clk 0:02:55]} 3. c4 {[%clk 0:02:52]}  c6 {[%clk 0:02:55]} 4. Nc3 {[%clk 0:02:51]}  e6 {[%clk 0:02:55]} 5. b3 {[%clk 0:02:51]}  b6 {[%clk 0:02:54]} 6. Bb2 {[%clk 0:02:47]}  Bb7 {[%clk 0:02:55]} 7. Rc1 {[%clk 0:02:02]}  a6 {[%clk 0:02:21]} 8. d4 {[%clk 0:02:00]}  Nbd7 {[%clk 0:02:21]} 9. Bd3 {[%clk 0:01:52]}  Be7 {[%clk 0:02:20]} 10. O-O {[%clk 0:01:51]}  O-O {[%clk 0:02:20]} 11. Qe2 {[%clk 0:01:51]}  dxc4 {[%clk 0:02:07]} 12. bxc4 {[%clk 0:01:49]}  c5 {[%clk 0:02:07]} 13. Rfd1 {[%clk 0:01:48]}  cxd4 {[%clk 0:02:08]} 14. exd4 {[%clk 0:01:49]}  Bb4 {[%clk 0:01:46]} 15. Ne4 {[%clk 0:01:46]}  Qe7 {[%clk 0:01:09]} 16. c5 {[%clk 0:01:07]}  bxc5 {[%clk 0:01:00]} 17. dxc5 {[%clk 0:00:59]}  Bxe4 {[%clk 0:00:27]} 18. Bxe4 {[%clk 0:01:00]}  Nxe4 {[%clk 0:00:27]} 19. Qxe4 {[%clk 0:01:01]}  Bxc5 {[%clk 0:00:27]} 20. Ne5 {[%clk 0:00:35]}  Nf6 {[%clk 0:00:20]} 21. Qf3 {[%clk 0:00:36]}  Rac8 {[%clk 0:00:17]} 22. Nc6 {[%clk 0:00:34]}  Qb7 {[%clk 0:00:17]} 23. Rxc5 {[%clk 0:00:33]}  Qxb2 {[%clk 0:00:17]} 24. Ne7+ {[%clk 0:00:33]}  Kh8 {[%clk 0:00:16]} 25. Rxc8 {[%clk 0:00:33]}  Rxc8 {[%clk 0:00:16]} 26. Nxc8 {[%clk 0:00:34]}  Nd5 {[%clk 0:00:16]} 27. Qxf7 {[%clk 0:00:31]} 1-0


[Site "https://www.chess.com"]

[Event "Titled Tuesday Blitz April 4 Late 2023"]
[White "Durarbayli, Vasif"]
[Black "Klukin, Kirill"]
[WhiteFideId "13402935"]
[BlackFideId "24199273"]
[WhiteElo "2551"]
[BlackElo "2344"]
[Result "1-0"]
[Round "06"]
[TimeControl "180+2"]
[Date "2023.04.04"]
[WhiteClock "0:00:09"]
[BlackClock "0:00:12"]

1. e4 {[%clk 0:03:00]}  c5 {[%clk 0:02:58]} 2. Nf3 {[%clk 0:03:01]}  g6 {[%clk 0:02:54]} 3. d4 {[%clk 0:03:01]}  cxd4 {[%clk 0:02:41]} 4. Nxd4 {[%clk 0:03:01]}  Bg7 {[%clk 0:02:41]} 5. Nc3 {[%clk 0:02:59]}  Nc6 {[%clk 0:02:41]} 6. Be3 {[%clk 0:03:00]}  Nf6 {[%clk 0:02:41]} 7. Nxc6 {[%clk 0:03:00]}  bxc6 {[%clk 0:02:41]} 8. e5 {[%clk 0:03:01]}  Ng8 {[%clk 0:02:41]} 9. f4 {[%clk 0:03:00]}  Nh6 {[%clk 0:02:41]} 10. Qd2 {[%clk 0:02:47]}  d6 {[%clk 0:02:30]} 11. O-O-O {[%clk 0:02:41]}  O-O {[%clk 0:02:29]} 12. Bc4 {[%clk 0:02:20]}  Nf5 {[%clk 0:02:28]} 13. Bf2 {[%clk 0:02:18]}  Qa5 {[%clk 0:02:19]} 14. exd6 {[%clk 0:02:15]}  exd6 {[%clk 0:02:14]} 15. Bb3 {[%clk 0:02:11]}  d5 {[%clk 0:02:10]} 16. Na4 {[%clk 0:01:59]}  Qc7 {[%clk 0:01:44]} 17. Rhe1 {[%clk 0:01:59]}  Nd6 {[%clk 0:01:42]} 18. Nc5 {[%clk 0:01:46]}  Bg4 {[%clk 0:01:41]} 19. Bd4 {[%clk 0:01:30]}  Bxd4 {[%clk 0:01:35]} 20. Qxd4 {[%clk 0:01:30]}  Bxd1 {[%clk 0:01:35]} 21. Rxd1 {[%clk 0:01:31]}  Nf5 {[%clk 0:01:34]} 22. Qf2 {[%clk 0:01:20]}  Rfe8 {[%clk 0:01:34]} 23. Nd3 {[%clk 0:01:15]}  a5 {[%clk 0:01:30]} 24. Ba4 {[%clk 0:01:12]}  Ne3 {[%clk 0:01:23]} 25. Rg1 {[%clk 0:01:08]}  Rab8 {[%clk 0:01:13]} 26. g4 {[%clk 0:01:01]}  Re4 {[%clk 0:00:59]} 27. Nc5 {[%clk 0:00:56]}  Qb6 {[%clk 0:00:24]} 28. Nxe4 {[%clk 0:00:56]}  Qxb2+ {[%clk 0:00:24]} 29. Kd2 {[%clk 0:00:56]}  Nc4+ {[%clk 0:00:24]} 30. Ke2 {[%clk 0:00:54]}  dxe4 {[%clk 0:00:24]} 31. Rd1 {[%clk 0:00:40]}  Nb6 {[%clk 0:00:20]} 32. Qd4 {[%clk 0:00:25]}  Nxa4 {[%clk 0:00:18]} 33. Qxa4 {[%clk 0:00:26]}  Rb4 {[%clk 0:00:17]} 34. Qxc6 {[%clk 0:00:26]}  Rb8 {[%clk 0:00:09]} 35. Qc7 {[%clk 0:00:09]}  Rf8 {[%clk 0:00:09]} 36. Rd8 {[%clk 0:00:06]}  Rxd8 {[%clk 0:00:08]} 37. Qxd8+ {[%clk 0:00:07]}  Kg7 {[%clk 0:00:09]} 38. Qc7 {[%clk 0:00:03]}  Qxa2 {[%clk 0:00:08]} 39. Qe5+ {[%clk 0:00:03]}  Kg8 {[%clk 0:00:07]} 40. Qb8+ {[%clk 0:00:03]}  Kg7 {[%clk 0:00:07]} 41. Qe5+ {[%clk 0:00:04]}  f6 {[%clk 0:00:06]} 42. Qc7+ {[%clk 0:00:03]}  Kg8 {[%clk 0:00:05]} 43. Qb8+ {[%clk 0:00:02]}  Kg7 {[%clk 0:00:05]} 44. Qb7+ {[%clk 0:00:03]}  Kh6 {[%clk 0:00:04]} 45. Qxe4 {[%clk 0:00:03]}  a4 {[%clk 0:00:05]} 46. h4 {[%clk 0:00:03]}  a3 {[%clk 0:00:02]} 47. Qc6 {[%clk 0:00:02]}  Qf7 {[%clk 0:00:01]} 48. Qa6 {[%clk 0:00:02]}  Qe7+ {[%clk 0:00:01]} 49. Kf2 {[%clk 0:00:03]}  Kg7 {[%clk 0:00:02]} 50. g5 {[%clk 0:00:03]}  Qe4 {[%clk 0:00:03]} 51. Qxf6+ {[%clk 0:00:02]}  Kg8 {[%clk 0:00:03]} 52. Qd8+ {[%clk 0:00:02]}  Kf7 {[%clk 0:00:03]} 53. Qc7+ {[%clk 0:00:02]}  Kg8 {[%clk 0:00:04]} 54. Qb8+ {[%clk 0:00:03]}  Kg7 {[%clk 0:00:04]} 55. Qa7+ {[%clk 0:00:03]}  Kg8 {[%clk 0:00:05]} 56. Qb8+ {[%clk 0:00:03]}  Kg7 {[%clk 0:00:05]} 57. Qa7+ {[%clk 0:00:03]}  Kg8 {[%clk 0:00:05]} 58. Qxa3 {[%clk 0:00:03]}  Qxc2+ {[%clk 0:00:05]} 59. Kg3 {[%clk 0:00:04]}  Qf5 {[%clk 0:00:05]} 60. Qa8+ {[%clk 0:00:04]}  Kg7 {[%clk 0:00:05]} 61. Qb7+ {[%clk 0:00:04]}  Kg8 {[%clk 0:00:06]} 62. Qb8+ {[%clk 0:00:05]}  Kf7 {[%clk 0:00:06]} 63. Qc7+ {[%clk 0:00:05]}  Kg8 {[%clk 0:00:06]} 64. Qb8+ {[%clk 0:00:05]}  Kf7 {[%clk 0:00:07]} 65. Qb7+ {[%clk 0:00:05]}  Kg8 {[%clk 0:00:07]} 66. Qb3+ {[%clk 0:00:06]}  Kg7 {[%clk 0:00:07]} 67. Qc3+ {[%clk 0:00:06]}  Kg8 {[%clk 0:00:08]} 68. Qe3 {[%clk 0:00:06]}  Qd5 {[%clk 0:00:08]} 69. Qe8+ {[%clk 0:00:05]}  Kg7 {[%clk 0:00:08]} 70. Qe5+ {[%clk 0:00:06]}  Qxe5 {[%clk 0:00:09]} 71. fxe5 {[%clk 0:00:07]}  Kf7 {[%clk 0:00:10]} 72. Kf3 {[%clk 0:00:07]}  Ke7 {[%clk 0:00:10]} 73. Ke3 {[%clk 0:00:07]}  Kd7 {[%clk 0:00:10]} 74. Kd4 {[%clk 0:00:08]}  Kc6 {[%clk 0:00:10]} 75. Kc4 {[%clk 0:00:08]}  Kc7 {[%clk 0:00:10]} 76. Kc5 {[%clk 0:00:08]}  Kd7 {[%clk 0:00:10]} 77. Kd5 {[%clk 0:00:08]}  Ke7 {[%clk 0:00:11]} 78. e6 {[%clk 0:00:09]}  Ke8 {[%clk 0:00:11]} 79. Kd6 {[%clk 0:00:09]}  Kd8 {[%clk 0:00:12]} 80. e7+ {[%clk 0:00:08]}  Ke8 {[%clk 0:00:12]} 81. Ke6 {[%clk 0:00:09]} 1-0


[Site "https://www.chess.com"]

[Event "Titled Tuesday Blitz April 4 Late 2023"]
[White "Papasimakopoulos, Alexandros"]
[Black "Li, Ruifeng"]
[WhiteFideId "4244125"]
[BlackFideId "2061074"]
[WhiteElo "2359"]
[BlackElo "2441"]
[Result "0-1"]
[Round "06"]
[TimeControl "180+2"]
[Date "2023.04.04"]
[WhiteClock "0:00:20"]
[BlackClock "0:01:06"]

1. d4 {[%clk 0:03:00]}  e6 {[%clk 0:02:59]} 2. c4 {[%clk 0:02:59]}  b6 {[%clk 0:03:00]} 3. e4 {[%clk 0:02:57]}  Bb7 {[%clk 0:03:01]} 4. Bd3 {[%clk 0:02:57]}  d6 {[%clk 0:03:01]} 5. Nc3 {[%clk 0:02:53]}  Nd7 {[%clk 0:03:02]} 6. Nf3 {[%clk 0:02:52]}  h6 {[%clk 0:03:02]} 7. O-O {[%clk 0:02:41]}  g5 {[%clk 0:03:02]} 8. Re1 {[%clk 0:02:37]}  Bg7 {[%clk 0:03:02]} 9. Be3 {[%clk 0:02:18]}  g4 {[%clk 0:02:51]} 10. Nd2 {[%clk 0:02:14]}  h5 {[%clk 0:02:52]} 11. f4 {[%clk 0:02:03]}  gxf3 {[%clk 0:02:45]} 12. Nxf3 {[%clk 0:02:03]}  Ngf6 {[%clk 0:02:44]} 13. Bg5 {[%clk 0:02:01]}  e5 {[%clk 0:02:28]} 14. d5 {[%clk 0:01:57]}  Bh6 {[%clk 0:02:22]} 15. Bxh6 {[%clk 0:01:40]}  Rxh6 {[%clk 0:02:23]} 16. Qd2 {[%clk 0:01:40]}  Rh8 {[%clk 0:02:10]} 17. Bc2 {[%clk 0:01:38]}  h4 {[%clk 0:02:04]} 18. Rf1 {[%clk 0:01:35]}  Nh5 {[%clk 0:02:04]} 19. Ne2 {[%clk 0:01:28]}  Qe7 {[%clk 0:01:53]} 20. Qg5 {[%clk 0:01:18]}  Qxg5 {[%clk 0:01:10]} 21. Nxg5 {[%clk 0:01:18]}  Ndf6 {[%clk 0:01:11]} 22. Rf3 {[%clk 0:00:59]}  Ke7 {[%clk 0:01:10]} 23. Raf1 {[%clk 0:00:54]}  Rag8 {[%clk 0:01:11]} 24. Nh3 {[%clk 0:00:52]}  Bc8 {[%clk 0:01:11]} 25. Nf2 {[%clk 0:00:50]}  Rh7 {[%clk 0:01:07]} 26. Nd1 {[%clk 0:00:39]}  Rhg7 {[%clk 0:01:05]} 27. Ne3 {[%clk 0:00:39]}  Ng4 {[%clk 0:01:04]} 28. Nxg4 {[%clk 0:00:29]}  Bxg4 {[%clk 0:01:03]} 29. R3f2 {[%clk 0:00:29]}  Bxe2 {[%clk 0:01:04]} 30. Rxe2 {[%clk 0:00:30]}  Nf4 {[%clk 0:01:04]} 31. Rxf4 {[%clk 0:00:24]}  exf4 {[%clk 0:01:05]} 32. Kf1 {[%clk 0:00:19]}  f3 {[%clk 0:01:03]} 33. gxf3 {[%clk 0:00:18]}  Rg1+ {[%clk 0:01:04]} 34. Kf2 {[%clk 0:00:19]}  R8g2+ {[%clk 0:01:05]} 35. Ke3 {[%clk 0:00:19]}  Rxe2+ {[%clk 0:01:05]} 36. Kxe2 {[%clk 0:00:20]}  Rg2+ {[%clk 0:01:06]} 0-1


[Site "https://www.chess.com"]